bitfinex/quotes_BTCUSD_20240803
["timestamp","ask_amount","ask_price","bid_price","bid_amount"]
[1722652482984,0.54766824,61273.0,61272.0,0.011098]
[1722652483236,0.97153587,61273.0,61272.0,0.011098]
[1722652483670,0.97153587,61273.0,61272.0,0.010098]
[1722652483875,0.73172987,61273.0,61272.0,0.010098]
[1722652484092,0.59981229,61273.0,61272.0,0.149598]
[1722652484231,0.9765264,61273.0,61272.0,0.149598]
[1722652484462,0.72221529,61273.0,61272.0,0.149598]
[1722652485068,0.72021529,61273.0,61272.0,0.149598]
[1722652485265,0.96202129,61273.0,61272.0,0.010098]
[1722652485483,0.97152658,61273.0,61272.0,0.010098]
[1722652485696,0.97352658,61273.0,61272.0,0.013098]
[1722652485922,1.21633258,61273.0,61272.0,0.013098]
[1722652486404,0.79247424,61273.0,61272.0,0.013098]
[1722652486629,1.64019074,61273.0,61272.0,0.010098]
[1722652486854,1.21733249,61273.0,61272.0,0.010098]
[1722652487083,1.64119072,61273.0,61272.0,0.010098]
[1722652488835,1.64019072,61273.0,61272.0,0.010098]
[1722652489217,1.64019072,61273.0,61272.0,0.011098]
[1722652489437,1.64019072,61273.0,61272.0,0.010098]
[1722652490113,1.64019072,61273.0,61272.0,0.011098]
[1722652490314,1.69964692,61273.0,61272.0,0.011098]
[1722652491952,1.69964692,61273.0,61272.0,0.010098]
[1722652492577,1.69964692,61273.0,61272.0,0.011098]
[1722652493003,1.69964692,61273.0,61272.0,0.010098]
[1722652493280,1.69964692,61273.0,61272.0,0.011098]
[1722652493703,1.69964741,61273.0,61272.0,0.011098]
[1722652494144,1.29738217,61273.0,61272.0,0.011098]
[1722652494366,1.05257617,61273.0,61272.0,0.011098]
[1722652494576,1.05257617,61273.0,61272.0,0.148898]
[1722652494577,0.90717317,61273.0,61272.0,0.148898]
[1722652494795,0.59340174,61273.0,61272.0,0.148898]
[1722652495215,0.42385825,61273.0,61272.0,0.30635724]
[1722652495845,0.42385825,61273.0,61272.0,0.30535724]
[1722652496087,0.59335131,61273.0,61272.0,0.30535724]
[1722652496320,0.42385825,61273.0,61272.0,0.30535724]
[1722652496555,0.122377,61286.0,61275.0,0.1378]
[1722652496787,0.16949481,61285.0,61276.0,0.13937439]
[1722652497000,0.244776,61281.0,61276.0,0.13937439]
[1722652497206,0.122395,61277.0,61276.0,0.1378]
[1722652497678,0.634975,61277.0,61276.0,0.1378]
[1722652497901,0.55969792,61277.0,61276.0,0.1378]
[1722652498806,0.55969792,61277.0,61276.0,0.1438]
[1722652499224,0.55969792,61277.0,61276.0,0.006]
[1722652499225,0.96194716,61277.0,61276.0,0.006]
[1722652499456,0.367209,61273.0,61272.0,0.010098]
[1722652499672,0.80455019,61273.0,61272.0,0.010098]
[1722652499898,0.85337928,61273.0,61272.0,0.010098]
[1722652500116,0.19253519,61273.0,61272.0,0.010098]
[1722652500331,0.25431084,61273.0,61272.0,0.30535724]
[1722652500759,0.25431084,61273.0,61272.0,0.438198]
[1722652501892,0.25431084,61273.0,61272.0,0.44809031]
[1722652502093,0.25431084,61273.0,61272.0,0.45009031]
[1722652502296,0.25431084,61273.0,61272.0,0.44809031]
[1722652502920,0.25431084,61273.0,61272.0,0.47609031]
[1722652503320,0.25431084,61273.0,61272.0,0.46209031]
[1722652503944,0.25431084,61273.0,61272.0,0.147898]
[1722652504147,0.25431084,61273.0,61272.0,0.161898]
[1722652504836,0.37671384,61273.0,61272.0,0.099898]
[1722652505076,0.27731084,61273.0,61272.0,0.085898]
[1722652505284,0.27731084,61273.0,61272.0,0.099898]
[1722652505490,0.27731084,61273.0,61272.0,0.113898]
[1722652505701,0.25431084,61273.0,61272.0,0.113898]
[1722652505900,0.25431084,61273.0,61272.0,0.099898]
[1722652506702,0.04884329,61280.0,61273.0,0.062]
[1722652506902,0.04884329,61288.0,61280.0,0.0758]
[1722652507088,0.16949328,61287.0,61280.0,0.1378]
[1722652507322,0.04884329,61288.0,61280.0,0.1378]
[1722652507323,0.16949328,61286.0,61280.0,0.1378]
[1722652507534,0.16949328,61285.0,61280.0,0.1378]
[1722652507745,0.04884329,61287.0,61280.0,0.1378]
[1722652507746,0.16949328,61284.0,61280.0,0.1378]
[1722652507952,0.16949328,61283.0,61280.0,0.1378]
[1722652508156,0.122372,61289.0,61280.0,0.1378]
[1722652508157,0.16949328,61282.0,61280.0,0.1378]
[1722652508368,0.16949328,61281.0,61280.0,0.1378]
[1722652508579,0.16949328,61286.0,61280.0,0.1378]
[1722652508783,0.16949328,61285.0,61280.0,0.1378]
[1722652508989,0.04884329,61290.0,61284.0,0.1903]
[1722652509205,0.1694833,61289.0,61285.0,0.0758]
[1722652509413,0.1694833,61288.0,61286.0,0.00157439]
[1722652509627,0.1694833,61292.0,61287.0,0.1903]
[1722652509843,0.04883622,61296.0,61287.0,0.1903]
[1722652509844,0.16947512,61291.0,61287.0,0.1903]
[1722652510053,0.16947512,61290.0,61288.0,0.1447]
[1722652510471,0.16947512,61289.0,61288.0,0.1447]
[1722652510671,0.16947512,61296.0,61288.0,0.1447]
[1722652510873,0.16947512,61295.0,61289.0,0.0832]
[1722652511075,0.0732319,61303.0,61289.0,0.0832]
[1722652511076,0.16947512,61294.0,61290.0,0.00125146]
[1722652511288,0.16947512,61293.0,61289.0,0.0832]
[1722652511500,0.16945551,61292.0,61290.0,0.00157439]
[1722652511701,0.16945551,61291.0,61290.0,0.00157439]
[1722652511893,0.16945551,61302.0,61290.0,0.00157439]
[1722652512320,0.16945551,61302.0,61290.0,0.01457439]
[1722652512551,0.19245551,61301.0,61291.0,0.0832]
[1722652512780,0.16945551,61300.0,61294.0,0.1903]
[1722652513009,0.16945551,61299.0,61295.0,0.14627439]
[1722652513245,0.04882127,61308.0,61295.0,0.1447]
[1722652513246,0.16945551,61298.0,61295.0,0.1447]
[1722652513451,0.122331,61309.0,61296.0,0.00157439]
[1722652513675,0.16943557,61308.0,61296.0,0.00157439]
[1722652514545,0.16943557,61307.0,61296.0,0.00157439]
[1722652514722,0.16943557,61306.0,61296.0,0.00157439]
[1722652514990,0.16943557,61305.0,61300.0,0.1903]
[1722652515201,0.16943557,61305.0,61297.0,0.1447]
[1722652515202,0.00083,61313.0,61304.0,0.1903]
[1722652515411,0.00083,61313.0,61305.0,0.00157439]
[1722652515412,0.16942318,61312.0,61305.0,0.00157439]
[1722652516360,0.122327,61311.0,61305.0,0.00157439]
[1722652516594,0.00083,61313.0,61303.0,0.00157439]
[1722652516803,0.16942893,61312.0,61303.0,0.00157439]
[1722652517011,0.16942893,61312.0,61305.0,0.008]
[1722652517215,0.16942893,61312.0,61302.0,0.1447]
[1722652517216,0.16942893,61312.0,61306.0,0.00157439]
[1722652517419,0.16942893,61312.0,61303.0,0.00157439]
[1722652517551,0.16942893,61312.0,61305.0,0.005]
[1722652517964,0.16942893,61312.0,61306.0,0.00157439]
[1722652519546,0.16942893,61312.0,61307.0,0.0832]
[1722652519750,0.16942893,61312.0,61311.0,0.0832]
[1722652519953,0.00083,61313.0,61311.0,0.0832]
[1722652520156,0.00083,61313.0,61312.0,0.00157439]
[1722652522424,0.00083,61313.0,61312.0,0.01357439]
[1722652522631,0.00083,61313.0,61312.0,0.31415924]
[1722652522802,0.00083,61313.0,61312.0,0.40215924]
[1722652523243,0.00083,61313.0,61312.0,0.42615924]
[1722652523655,0.00083,61313.0,61312.0,0.41615924]
[1722652524531,0.00083,61313.0,61312.0,0.40215924]
[1722652524943,0.00083,61313.0,61312.0,0.41215924]
[1722652525146,0.00083,61313.0,61312.0,0.43215924]
[1722652525506,0.00083,61313.0,61312.0,0.44615924]
[1722652526108,0.00083,61313.0,61312.0,0.56948424]
[1722652526308,0.00083,61313.0,61312.0,0.79913424]
[1722652526508,0.00083,61313.0,61312.0,0.80113424]
[1722652526715,0.00183,61313.0,61312.0,0.80313424]
[1722652527126,0.00083,61323.0,61322.0,0.66392]
[1722652527351,0.00083,61328.0,61327.0,0.345]
[1722652527542,0.00083,61328.0,61327.0,0.88934424]
[1722652527741,0.00083,61328.0,61327.0,1.33393424]
[1722652527916,0.00919,61341.0,61340.0,0.1447]
[1722652528122,0.00919,61341.0,61340.0,0.14796008]
[1722652528469,0.00919,61341.0,61340.0,0.24796008]
[1722652529436,0.00919,61341.0,61340.0,0.26196008]
[1722652529644,0.00919,61341.0,61340.0,0.24796008]
[1722652530040,0.00919,61341.0,61340.0,0.26196006]
[1722652530245,0.00919,61341.0,61340.0,0.27596006]
[1722652530664,0.00919,61341.0,61340.0,0.4334193]
[1722652532489,0.00919,61341.0,61340.0,0.43015924]
[1722652533377,0.00919,61341.0,61340.0,0.43981247]
[1722652533828,0.00919,61341.0,61340.0,0.59208147]
[1722652534040,0.47251164,61371.0,61341.0,0.01]
[1722652534243,0.48170164,61370.0,61351.0,0.481647]
[1722652534447,0.48170164,61370.0,61351.0,0.39655924]
[1722652534652,0.48170164,61370.0,61351.0,0.49909563]
[1722652534866,0.07875194,61369.0,61351.0,0.45519025]
[1722652535563,0.48170164,61370.0,61351.0,0.39655924]
[1722652536090,0.48170164,61370.0,61351.0,0.44462908]
[1722652536292,0.48170164,61370.0,61351.0,0.40855924]
[1722652537224,0.48170164,61370.0,61351.0,0.39655924]
[1722652537440,0.48170164,61370.0,61351.0,0.39855924]
[1722652537640,0.48170164,61370.0,61351.0,0.55080624]
[1722652537841,0.48170164,61370.0,61351.0,0.79530024]
[1722652538453,0.48170164,61370.0,61351.0,0.79630024]
[1722652538648,0.48170164,61370.0,61351.0,0.85447558]
[1722652538849,0.48170164,61370.0,61351.0,0.80540574]
[1722652539093,0.48170164,61370.0,61357.0,0.002]
[1722652539374,0.48170164,61370.0,61366.0,0.1903]
[1722652539577,0.00919,61370.0,61366.0,0.2903]
[1722652539813,0.00919,61370.0,61366.0,0.33836984]
[1722652540742,0.00919,61370.0,61360.0,0.1903]
[1722652540948,0.00919,61370.0,61361.0,0.1]
[1722652541284,0.00919,61370.0,61366.0,0.3294]
[1722652541483,0.00919,61370.0,61366.0,0.59685924]
[1722652541626,0.00919,61370.0,61366.0,0.71907624]
[1722652541825,0.00919,61370.0,61366.0,0.72107624]
[1722652542073,0.00919,61370.0,61366.0,0.67492908]
[1722652542454,0.00919,61370.0,61366.0,0.64692908]
[1722652542657,0.00919,61370.0,61366.0,0.64792908]
[1722652542860,0.00919,61370.0,61366.0,0.69277087]
[1722652543077,0.00919,61370.0,61366.0,0.68077087]
[1722652543438,0.00919,61370.0,61366.0,0.52825924]
[1722652543762,0.00919,61370.0,61366.0,0.57632908]
[1722652545222,0.00919,61370.0,61366.0,0.57532908]
[1722652545650,0.00919,61370.0,61366.0,0.57632908]
[1722652545862,0.00919,61370.0,61366.0,0.57832908]
[1722652546078,0.00919,61370.0,61366.0,0.59707302]
[1722652546286,0.00919,61370.0,61366.0,0.59807302]
[1722652546461,0.00919,61370.0,61366.0,0.78089002]
[1722652546664,0.00919,61370.0,61366.0,1.12407696]
[1722652547058,0.00919,61370.0,61369.0,0.212711]
[1722652547269,0.00919,61370.0,61369.0,0.52149825]
[1722652547897,0.00919,61370.0,61369.0,0.84652125]
[1722652548122,0.00083,61374.0,61373.0,0.324503]
[1722652548340,0.00083,61374.0,61373.0,0.83016437]
[1722652548764,0.00083,61374.0,61373.0,1.07457137]
[1722652549188,0.00083,61374.0,61373.0,1.31897837]
[1722652549400,0.00919,61377.0,61376.0,0.537692]
[1722652549618,0.00919,61377.0,61376.0,1.08761608]
[1722652549828,0.00919,61377.0,61376.0,1.12864837]
[1722652550242,0.00889186,61377.0,61376.0,1.12864837]
[1722652550475,0.00919,61379.0,61377.0,0.398586]
[1722652550683,0.00919,61379.0,61377.0,0.82292176]
[1722652551129,0.06929,61403.0,61382.0,0.012]
[1722652551342,0.06929,61403.0,61382.0,0.49353382]
[1722652551568,0.06929,61403.0,61382.0,0.49416137]
[1722652552217,0.06929,61403.0,61382.0,0.51416137]
[1722652552432,0.06929,61403.0,61382.0,0.51616137]
[1722652552639,0.06929,61403.0,61382.0,0.48516137]
[1722652552852,0.0795,61393.0,61382.0,0.42376137]
[1722652553065,0.0601,61387.0,61382.0,0.34656137]
[1722652553281,0.0601,61387.0,61382.0,0.14806984]
[1722652553282,0.07875194,61386.0,61382.0,0.14806984]
[1722652553522,0.07875194,61386.0,61382.0,0.05006984]
[1722652553734,0.02793427,61383.0,61382.0,0.002]
[1722652553944,0.02793427,61383.0,61382.0,0.001]
[1722652554388,0.02793427,61383.0,61382.0,0.002]
[1722652554630,0.10693427,61383.0,61382.0,0.002]
[1722652554858,0.27614932,61383.0,61382.0,0.002]
[1722652555076,0.27614932,61383.0,61382.0,0.001]
[1722652555523,0.28914932,61383.0,61382.0,0.001]
[1722652555743,0.27614932,61383.0,61378.0,0.10157439]
[1722652555965,0.10693427,61383.0,61382.0,0.014]
[1722652556174,0.27714985,61383.0,61382.0,0.028]
[1722652556598,0.39933285,61383.0,61382.0,0.014]
[1722652556802,0.27715705,61383.0,61382.0,0.014]
[1722652557010,0.39934005,61383.0,61382.0,0.014]
[1722652557183,0.27715705,61383.0,61382.0,0.014]
[1722652557839,0.19815705,61383.0,61382.0,0.014]
[1722652558263,0.19715705,61383.0,61378.0,0.00157439]
[1722652558479,0.16922278,61382.0,61378.0,0.10157439]
[1722652558868,0.01579679,61381.0,61378.0,0.10157439]
[1722652559067,0.16922278,61380.0,61378.0,0.10157439]
[1722652559539,0.079,61379.0,61370.0,0.1903]
[1722652559742,0.09480728,61379.0,61378.0,0.013]
[1722652559930,0.46138128,61379.0,61378.0,0.027]
[1722652560150,0.44632347,61379.0,61378.0,0.027]
[1722652560288,0.32413247,61379.0,61378.0,0.027]
[1722652560490,0.32413247,61379.0,61378.0,0.013]
[1722652560491,0.24513247,61379.0,61378.0,0.013]
[1722652560898,0.24613247,61379.0,61378.0,0.013]
[1722652561170,0.2461239,61379.0,61378.0,0.013]
[1722652561446,0.24612377,61379.0,61378.0,0.026]
[1722652561700,0.24612377,61379.0,61377.0,0.00157439]
[1722652561701,0.07690728,61379.0,61372.0,0.04875681]
[1722652561908,0.07690728,61379.0,61371.0,0.477]
[1722652561909,0.244392,61377.0,61371.0,0.477]
[1722652562198,0.19222196,61376.0,61371.0,0.476]
[1722652562404,0.19222196,61376.0,61372.0,0.00157439]
[1722652562405,0.122204,61373.0,61372.0,0.00157439]
[1722652562616,0.122204,61373.0,61371.0,0.476]
[1722652562617,0.122205,61372.0,61371.0,0.476]
[1722652562826,0.122205,61372.0,61359.0,0.04718242]
[1722652562827,0.122225,61363.0,61359.0,0.04718242]
[1722652563043,0.31955924,61372.0,61357.0,0.00157439]
[1722652563044,0.15745924,61371.0,61357.0,0.00157439]
[1722652563305,0.19226819,61370.0,61358.0,0.1903]
[1722652563508,0.122217,61366.0,61358.0,0.1903]
[1722652563719,0.03875191,61370.0,61358.0,0.1903]
[1722652563720,0.16926819,61365.0,61358.0,0.1903]
[1722652563941,0.16926819,61364.0,61358.0,0.1903]
[1722652564148,0.16926819,61363.0,61358.0,0.1903]
[1722652564358,0.122216,61367.0,61358.0,0.1903]
[1722652564359,0.18489996,61362.0,61358.0,0.1903]
[1722652564577,0.18489996,61362.0,61359.0,0.001]
[1722652564578,0.16926922,61361.0,61359.0,0.001]
[1722652564967,0.01553122,61360.0,61359.0,0.001]
[1722652565174,0.18480044,61360.0,61359.0,0.001]
[1722652565347,0.24490044,61360.0,61359.0,0.001]
[1722652565752,0.18480044,61360.0,61358.0,0.1903]
[1722652565966,0.16926922,61359.0,61358.0,0.1903]
[1722652566135,0.18478977,61359.0,61358.0,0.59835924]
[1722652566765,0.18478977,61359.0,61358.0,0.58535924]
[1722652566925,0.16926922,61359.0,61358.0,0.59935924]
[1722652567129,0.01552055,61359.0,61358.0,0.59935924]
[1722652567328,0.001,61359.0,61358.0,0.61135924]
[1722652567575,0.001,61359.0,61358.0,0.59735924]
[1722652567776,0.001,61359.0,61358.0,0.61135924]
[1722652568626,0.0601,61373.0,61358.0,0.59935924]
[1722652568828,0.1692485,61372.0,61366.0,0.1903]
[1722652569026,0.1692485,61371.0,61366.0,0.1903]
[1722652569608,0.0601,61373.0,61366.0,0.1903]
[1722652569609,0.18476905,61370.0,61366.0,0.1903]
[1722652569828,0.1692485,61369.0,61366.0,0.1903]
[1722652570031,0.01552055,61370.0,61366.0,0.2123]
[1722652570255,0.16924733,61369.0,61367.0,0.0032588]
[1722652570463,0.001,61372.0,61368.0,0.15745924]
[1722652570613,0.1702398,61371.0,61370.0,0.0612]
[1722652571030,0.1702398,61371.0,61369.0,0.1]
[1722652571461,0.1692398,61370.0,61369.0,0.1]
[1722652571661,0.1692398,61370.0,61367.0,0.1]
[1722652572051,0.1692402,61369.0,61367.0,0.1]
[1722652572281,0.122188,61381.0,61368.0,0.00157439]
[1722652572482,0.00083,61379.0,61368.0,0.01557439]
[1722652572724,0.16923987,61378.0,61372.0,0.1903]
[1722652572929,0.16923987,61378.0,61373.0,0.1]
[1722652574973,0.00083,61379.0,61373.0,0.1]
[1722652575177,0.16922633,61378.0,61373.0,0.1]
[1722652575593,0.16922633,61378.0,61373.0,0.11]
[1722652575918,0.17022633,61378.0,61373.0,0.112]
[1722652576056,0.16922633,61377.0,61373.0,0.1]
[1722652576257,0.16922633,61377.0,61373.0,0.108]
[1722652576473,0.16922633,61377.0,61373.0,0.12]
[1722652576669,0.16922633,61377.0,61373.0,0.112]
[1722652576892,0.16922633,61377.0,61373.0,0.1]
[1722652577093,0.16922633,61376.0,61373.0,0.113]
[1722652577311,0.16922633,61375.0,61373.0,0.113]
[1722652577512,0.16922633,61374.0,61373.0,0.113]
[1722652577722,0.16922633,61378.0,61373.0,0.113]
[1722652577892,0.00083,61379.0,61373.0,0.113]
[1722652577893,0.18493674,61377.0,61373.0,0.113]
[1722652578092,0.16922633,61376.0,61373.0,0.113]
[1722652578292,0.16886286,61376.0,61373.0,0.112]
[1722652578545,0.18457327,61375.0,61373.0,0.112]
[1722652578785,0.01571041,61375.0,61373.0,0.112]
[1722652578984,0.001,61378.0,61373.0,0.112]
[1722652579187,0.00083,61379.0,61373.0,0.1]
[1722652579188,0.01571041,61377.0,61373.0,0.1]
[1722652579387,0.001,61376.0,61373.0,0.126]
[1722652579593,0.01671743,61376.0,61373.0,0.126]
[1722652579796,0.00083,61379.0,61375.0,0.0612]
[1722652579997,0.00083,61379.0,61378.0,0.1903]
[1722652580211,0.00083,61379.0,61378.0,0.44775924]
[1722652580425,0.00083,61379.0,61378.0,0.58310618]
[1722652580635,0.00083,61379.0,61378.0,0.44775924]
[1722652582290,0.00283,61379.0,61378.0,0.2903]
[1722652582670,0.00283,61379.0,61378.0,0.2913]
[1722652582869,0.00483,61379.0,61378.0,0.2923]
[1722652583069,0.00083,61379.0,61378.0,0.2903]
[1722652583473,0.00083,61379.0,61378.0,0.3043]
[1722652585139,0.00083,61379.0,61378.0,0.3183]
[1722652585584,0.00083,61379.0,61378.0,0.61885924]
[1722652585779,0.00083,61379.0,61378.0,0.62885924]
[1722652585980,0.00083,61379.0,61378.0,0.88639639]
[1722652587147,0.00083,61379.0,61378.0,1.13078339]
[1722652587924,0.00083,61379.0,61378.0,1.11678339]
[1722652588051,0.00083,61379.0,61378.0,1.10378339]
[1722652588253,0.00919,61383.0,61382.0,0.1551]
[1722652588507,0.00919,61383.0,61382.0,0.40255924]
[1722652588648,0.00919,61383.0,61382.0,0.40055924]
[1722652588853,0.00919,61383.0,61382.0,0.40255924]
[1722652589050,0.00919,61383.0,61382.0,0.53474424]
[1722652589560,0.00919,61383.0,61382.0,0.53674424]
[1722652589761,0.00919,61383.0,61382.0,0.78011524]
[1722652590098,0.00919,61383.0,61382.0,0.53574424]
[1722652590298,0.00919,61383.0,61382.0,0.53674424]
[1722652590900,0.00919,61383.0,61382.0,0.78011524]
[1722652591101,0.00919,61383.0,61382.0,0.78111524]
[1722652591306,0.00919,61383.0,61382.0,0.91644623]
[1722652591504,0.00919,61384.0,61383.0,0.012]
[1722652591707,0.06919,61403.0,61388.0,0.132173]
[1722652591708,0.00919,61403.0,61388.0,0.132173]
[1722652591932,0.00919,61403.0,61400.0,0.1903]
[1722652593400,0.01588714,61402.0,61400.0,0.23445823]
[1722652593759,0.01588714,61402.0,61400.0,0.1903]
[1722652593968,0.01588714,61402.0,61401.0,0.0608]
[1722652594165,0.00919,61403.0,61401.0,0.16405697]
[1722652594380,0.00919,61403.0,61402.0,0.15745924]
[1722652594668,0.00919,61403.0,61402.0,0.16071591]
[1722652595077,0.00919,61403.0,61402.0,0.15745924]
[1722652595225,0.00919,61403.0,61402.0,0.25745924]
[1722652595905,0.00919,61403.0,61402.0,0.27145924]
[1722652596107,0.00919,61403.0,61402.0,0.28545924]
[1722652597293,0.14598932,61431.0,61403.0,0.0628]
[1722652597294,0.06,61422.0,61403.0,0.0628]
[1722652597575,0.01629592,61421.0,61415.0,0.1903]
[1722652598279,0.01629592,61421.0,61415.0,0.19355628]
[1722652598416,0.01629592,61421.0,61415.0,0.1903]
[1722652598622,0.16910883,61420.0,61415.0,0.1903]
[1722652598824,0.139,61419.0,61415.0,0.001]
[1722652599017,0.139,61419.0,61415.0,0.003]
[1722652599018,0.16910883,61418.0,61415.0,0.003]
[1722652599261,0.18540475,61418.0,61403.0,0.29187439]
[1722652599476,0.18540475,61418.0,61403.0,0.44933363]
[1722652599477,0.16910883,61417.0,61403.0,0.44933363]
[1722652599697,0.16910883,61417.0,61415.0,0.006]
[1722652600205,0.162,61419.0,61415.0,0.006]
[1722652600206,0.01629592,61416.0,61415.0,0.006]
[1722652600460,0.16912432,61416.0,61415.0,0.006]
[1722652600679,0.16912432,61416.0,61415.0,0.011]
[1722652600680,0.07629592,61416.0,61415.0,0.011]
[1722652600848,0.07629592,61416.0,61415.0,0.005]
[1722652600849,0.24542024,61416.0,61415.0,0.005]
[1722652601258,0.07629592,61416.0,61415.0,0.009]
[1722652601523,0.07629592,61416.0,61415.0,0.007]
[1722652601731,0.07629592,61416.0,61415.0,0.011]
[1722652601937,0.24541566,61416.0,61403.0,0.44933363]
[1722652602163,0.16911974,61415.0,61404.0,0.15745924]
[1722652602371,0.16911974,61415.0,61405.0,0.1]
[1722652602575,0.09529592,61414.0,61405.0,0.1]
[1722652602919,0.35125411,61413.0,61405.0,0.1]
[1722652603113,0.16912911,61412.0,61405.0,0.1]
[1722652603312,0.16914596,61412.0,61405.0,0.1]
[1722652603513,0.01629592,61411.0,61398.0,0.10483128]
[1722652603712,0.16914596,61410.0,61398.0,0.26229052]
[1722652603914,0.16914596,61410.0,61403.0,0.1913]
[1722652604118,0.18544188,61409.0,61404.0,0.1]
[1722652604321,0.122135,61408.0,61403.0,0.001]
[1722652604482,0.16914687,61407.0,61399.0,0.00157439]
[1722652604685,0.16914687,61406.0,61399.0,0.00157439]
[1722652604998,0.16914687,61405.0,61399.0,0.00157439]
[1722652605199,0.06,61413.0,61404.0,0.0608]
[1722652605399,0.06,61418.0,61412.0,0.1903]
[1722652605622,0.16912721,61417.0,61412.0,0.1903]
[1722652606021,0.16912649,61416.0,61412.0,0.1903]
[1722652606266,0.16912649,61415.0,61412.0,0.1903]
[1722652606441,0.16912649,61414.0,61412.0,0.1903]
[1722652606654,0.06,61418.0,61412.0,0.1903]
[1722652606891,0.16912458,61417.0,61412.0,0.1903]
[1722652607663,0.16912458,61416.0,61413.0,0.08615639]
[1722652607816,0.07875194,61426.0,61414.0,0.0608]
[1722652607817,0.13875194,61426.0,61414.0,0.0608]
[1722652608172,0.16911174,61425.0,61415.0,0.00325612]
[1722652608325,0.16911174,61425.0,61418.0,0.1903]
[1722652610515,0.16911174,61425.0,61415.0,0.00325612]
[1722652610710,0.16911174,61425.0,61418.0,0.009]
[1722652610711,0.07875194,61419.0,61418.0,0.009]
[1722652610862,0.21975194,61419.0,61418.0,0.009]
[1722652611066,0.53397568,61419.0,61418.0,0.009]
[1722652611265,0.53397568,61419.0,61418.0,0.019]
[1722652611465,0.122114,61418.0,61408.0,0.00973216]
[1722652611670,0.122114,61418.0,61404.0,0.1791]
[1722652611671,0.122119,61416.0,61404.0,0.1791]
[1722652611851,0.16911174,61415.0,61404.0,0.33655924]
[1722652612050,0.16911174,61414.0,61406.0,0.1903]
[1722652612258,0.16911174,61413.0,61407.0,0.1]
[1722652612503,0.16911174,61412.0,61407.0,0.1]
[1722652612680,0.16911174,61411.0,61407.0,0.1]
[1722652612875,0.16912655,61411.0,61407.0,0.1]
[1722652613092,0.16912656,61410.0,61407.0,0.1]
[1722652613293,0.16912653,61409.0,61407.0,0.1]
[1722652613513,0.16912655,61411.0,61407.0,0.1]
[1722652613848,0.16912654,61410.0,61408.0,0.001]
[1722652614559,0.16912654,61410.0,61407.0,0.1]
[1722652614688,0.16912654,61410.0,61407.0,0.101]
[1722652615501,0.16912654,61410.0,61408.0,0.001]
[1722652616322,0.16912655,61411.0,61408.0,0.001]
[1722652616519,0.16912751,61410.0,61408.0,0.001]
[1722652616728,0.16912751,61410.0,61407.0,0.1]
[1722652616930,0.16912751,61410.0,61408.0,0.001]
[1722652617133,0.16912751,61410.0,61407.0,0.1]
[1722652617134,0.16912751,61409.0,61407.0,0.1]
[1722652617397,0.16912751,61408.0,61407.0,0.1]
[1722652617675,0.07875194,61418.0,61408.0,0.001]
[1722652617830,0.16912841,61417.0,61407.0,0.1]
[1722652618033,0.16912841,61416.0,61408.0,0.001]
[1722652618236,0.07875194,61418.0,61408.0,0.001]
[1722652618237,0.16912841,61415.0,61408.0,0.002]
[1722652618530,0.20086694,61418.0,61408.0,0.002]
[1722652618531,0.16912841,61414.0,61408.0,0.001]
[1722652618788,0.16912841,61413.0,61408.0,0.001]
[1722652618994,0.16912841,61412.0,61407.0,0.1]
[1722652619122,0.16912841,61411.0,61407.0,0.1]
[1722652619328,0.16912841,61410.0,61407.0,0.1]
[1722652619557,0.16912841,61409.0,61407.0,0.1]
[1722652619726,0.16912841,61408.0,61407.0,0.1]
[1722652619927,0.164,61419.0,61408.0,0.001]
[1722652620185,0.16912681,61418.0,61408.0,0.002]
[1722652620330,0.16912681,61417.0,61408.0,0.001]
[1722652620529,0.16912681,61416.0,61408.0,0.001]
[1722652620757,0.16912681,61415.0,61407.0,0.10425659]
[1722652621080,0.141,61409.0,61407.0,0.001]
[1722652621292,0.16912681,61408.0,61407.0,0.001]
[1722652621693,0.16912681,61408.0,61400.0,0.11008675]
[1722652621899,0.16912681,61407.0,61400.0,0.11008675]
[1722652622319,0.16912681,61406.0,61400.0,0.11008675]
[1722652622524,0.16915853,61405.0,61400.0,0.11008675]
[1722652622760,0.141,61409.0,61400.0,0.11008675]
[1722652622963,0.141,61409.0,61400.0,0.1]
[1722652622964,0.16916086,61404.0,61400.0,0.1]
[1722652623171,0.42290216,61408.0,61400.0,0.1]
[1722652623378,0.01627824,61403.0,61400.0,0.1]
[1722652623728,0.001,61405.0,61400.0,0.114]
[1722652623936,0.01627824,61404.0,61397.0,0.0791]
[1722652624362,0.16916293,61404.0,61400.0,0.014]
[1722652624615,0.16916293,61404.0,61400.0,0.027]
[1722652624616,0.01627824,61403.0,61400.0,0.027]
[1722652624742,0.01627824,61403.0,61400.0,0.013]
[1722652624942,0.01627824,61403.0,61397.0,0.0791]
[1722652625145,0.18544117,61403.0,61400.0,0.014]
[1722652625347,0.16916293,61402.0,61400.0,0.014]
[1722652625622,0.001,61405.0,61400.0,0.014]
[1722652625826,0.01627824,61401.0,61400.0,0.014]
[1722652625975,0.001,61405.0,61400.0,0.014]
[1722652626212,0.122138,61406.0,61397.0,0.0791]
[1722652626213,0.01627824,61401.0,61397.0,0.0791]
[1722652626405,0.01627824,61401.0,61399.0,0.49]
[1722652626579,0.122144,61403.0,61400.0,0.014]
[1722652626779,0.001,61403.0,61400.0,0.014]
[1722652627052,0.122142,61404.0,61398.0,0.1]
[1722652627188,0.122142,61404.0,61400.0,0.014]
[1722652627386,0.16916339,61403.0,61400.0,0.028]
[1722652627587,0.122147,61401.0,61400.0,0.028]
[1722652627812,0.46048632,61401.0,61391.0,0.1]
[1722652627971,0.29132394,61400.0,61391.0,0.1]
[1722652628167,0.16917394,61399.0,61391.0,0.1]
[1722652628371,0.16917394,61398.0,61391.0,0.1]
[1722652628578,0.16917394,61397.0,61391.0,0.1]
[1722652628780,0.29401021,61403.0,61391.0,0.1]
[1722652628781,0.16917394,61396.0,61391.0,0.1]
[1722652628983,0.16917394,61395.0,61390.0,0.00997767]
[1722652629179,0.16917394,61394.0,61389.0,0.1]